fUST/lending_fUST_20250905
["ID","MTS","AMOUNT","RATE_DAILY","PERIOD"]
[383639848,1757057441965,-480.0,0.00013698,2]
[383639849,1757057441975,-480.0,0.00013698,2]
[383639850,1757057441985,-480.0,0.00013698,2]
[383639851,1757057441995,-480.0,0.00013698,2]
[383639852,1757057442005,-480.0,0.00013698,2]
[383639853,1757057442014,-480.0,0.00013698,2]
[383639854,1757057442023,-481.77535468,0.00013698,2]
[383639855,1757057442035,-482.0053665,0.00013698,2]
[383639856,1757057442044,-480.0,0.00013698,2]
[383639857,1757057442054,-480.0,0.00013698,2]
[383639858,1757057442064,-480.0,0.00013698,2]
[383639859,1757057442075,-480.0,0.00013698,2]
[383639860,1757057442084,-480.0,0.00013698,2]
[383639861,1757057442094,-480.0,0.00013698,2]
[383639862,1757057442103,-480.0,0.00013698,2]
[383639863,1757057442112,-480.0,0.00013698,2]
[383639864,1757057442122,-480.0,0.00013698,2]
[383639865,1757057442131,-215.50172759,0.00013698,2]
[383639866,1757057442141,-480.0,0.00013698,2]
[383639867,1757057442151,-480.0,0.00013698,2]
[383639868,1757057442160,-483.19625541,0.00013698,2]
[383639869,1757057442170,-480.0,0.00013698,2]
[383639870,1757057442180,-480.0,0.00013698,2]
[383639871,1757057442190,-480.0,0.00013698,2]
[383639872,1757057442200,-453.99555922,0.00013698,2]
[383639873,1757057442209,-480.0,0.00013698,2]
[383639874,1757057442219,-165.81067714,0.00013698,2]
[383639875,1757057442229,-480.0,0.00013698,2]
[383639876,1757057442240,-480.0,0.00013698,2]
[383639877,1757057442250,-480.0,0.00013698,2]
[383639878,1757057442259,-480.0,0.00013698,2]
[383639879,1757057442269,-480.0,0.00013698,2]
[383639880,1757057442278,-482.16527494,0.00013698,2]
[383639881,1757057442287,-466.10529716,0.00013698,2]
[383639882,1757057442296,-480.0,0.00013698,2]
[383639883,1757057442306,-480.0,0.00013698,2]
[383639884,1757057442315,-480.0,0.00013698,2]
[383639885,1757057442325,-480.0,0.00013698,2]
[383639886,1757057442335,-483.29408813,0.00013698,2]
[383639887,1757057442344,-480.0,0.00013698,2]
[383639888,1757057442353,-480.0,0.00013698,2]
[383639889,1757057442363,-543.33,0.00013698,2]
[383639890,1757057442372,-480.0,0.00013698,2]
[383639891,1757057442382,-480.0,0.00013698,2]
[383639892,1757057442391,-480.0,0.00013698,2]
[383639893,1757057442401,-480.0,0.00013698,2]
[383639894,1757057442410,-480.0,0.00013698,2]
[383639895,1757057442420,-480.0,0.00013698,2]
[383639896,1757057442429,-480.0,0.00013698,2]
[383639897,1757057442439,-506.18,0.00013698,2]
[383639898,1757057442448,-480.0,0.00013698,2]
[383639899,1757057442457,-480.0,0.00013698,2]
[383639900,1757057442467,-480.0,0.00013698,2]
[383639901,1757057442476,-264.46885906,0.00013698,2]
[383639902,1757057442486,-359.17,0.00013698,2]
[383639903,1757057442496,-480.0,0.00013698,2]
[383639904,1757057442506,-480.0,0.00013698,2]
[383639905,1757057442516,-480.0,0.00013698,2]
[383639906,1757057442525,-480.0,0.00013698,2]
[383639907,1757057442534,-480.0,0.00013698,2]
[383639908,1757057442543,-480.0,0.00013698,2]
[383639909,1757057442554,-480.0,0.00013698,2]
[383639910,1757057442563,-480.0,0.00013698,2]
[383639911,1757057442574,-208.50856281,0.00013698,2]
[383639912,1757057442583,-365.90011165,0.00013698,2]
[383639913,1757057442593,-480.0,0.00013698,2]
[383639914,1757057442603,-480.0,0.00013698,2]
[383639915,1757057442612,-524.55576849,0.00013698,2]
[383639916,1757057442622,-480.0,0.00013698,2]
[383639917,1757057442632,-480.0,0.00013698,2]
[383639918,1757057442642,-534.67,0.00013698,2]
[383639919,1757057442653,-480.0,0.00013698,2]
[383639920,1757057442663,-480.0,0.00013698,2]
[383639921,1757057442672,-292.9309614,0.00013698,2]
[383639922,1757057442682,-480.0,0.00013698,2]
[383639923,1757057442692,-480.0,0.00013698,2]
[383639924,1757057442702,-480.0,0.00013698,2]
[383639925,1757057442711,-504.18522678,0.00013698,2]
[383639926,1757057442721,-480.0,0.00013698,2]
[383639927,1757057442731,-480.0,0.00013698,2]
[383639928,1757057442741,-480.0,0.00013698,2]
[383639929,1757057442752,-310.27081167,0.00013698,2]
[383639930,1757057442762,-480.0,0.00013698,2]
[383639931,1757057442772,-480.0,0.00013698,2]
[383639932,1757057442782,-480.0,0.00013698,2]
[383639933,1757057442790,-480.0,0.00013698,2]
[383639934,1757057442800,-482.24831046,0.00013698,2]
[383639935,1757057442811,-480.0,0.00013698,2]
[383639936,1757057442820,-480.0,0.00013698,2]
[383639937,1757057442831,-480.0,0.00013698,2]
[383639938,1757057442841,-480.0,0.00013698,2]
[383639940,1757057442850,-480.0,0.00013698,2]
[383639942,1757057442859,-480.0,0.00013698,2]
[383639944,1757057442869,-480.0,0.00013698,2]
[383639945,1757057442883,-480.0,0.00013698,2]
[383639946,1757057442893,-480.0,0.00013698,2]
[383639947,1757057442902,-480.0,0.00013698,2]
[383639948,1757057442911,-480.0,0.00013698,2]
[383639949,1757057442921,-480.0,0.00013698,2]
[383639950,1757057442930,-480.0,0.00013698,2]
[383639951,1757057442940,-480.0,0.00013698,2]
[383639952,1757057442949,-480.0,0.00013698,2]
[383639953,1757057442959,-480.0,0.00013698,2]
[383639954,1757057442968,-482.35221799,0.00013698,2]
[383639955,1757057442978,-480.0,0.00013698,2]
[383639956,1757057442987,-480.0,0.00013698,2]
[383639957,1757057442997,-499.22,0.00013698,2]
[383639958,1757057443006,-480.0,0.00013698,2]
[383639959,1757057443015,-480.0,0.00013698,2]
[383639960,1757057443027,-480.0,0.00013698,2]
[383639961,1757057443036,-568.82,0.00013698,2]
[383639962,1757057443045,-481.2462477,0.00013698,2]
[383639963,1757057443055,-480.0,0.00013698,2]
[383639964,1757057443064,-240.43166921,0.00013698,2]
[383639965,1757057443075,-480.0,0.00013698,2]
[383639966,1757057443084,-481.01915889,0.00013698,2]
[383639967,1757057443093,-1346.22,0.00013698,2]
[383639968,1757057443103,-480.0,0.00013698,2]
[383639969,1757057443113,-480.0,0.00013698,2]
[383639970,1757057443122,-549.26,0.00013698,2]
[383639971,1757057443131,-480.0,0.00013698,2]
[383639972,1757057443140,-480.0,0.00013698,2]
[383639973,1757057443149,-480.0,0.00013698,2]
[383639974,1757057443160,-480.0,0.00013698,2]
[383639975,1757057443169,-480.0,0.00013698,2]
[383639976,1757057443178,-480.0,0.00013698,2]
[383639977,1757057443188,-480.0,0.00013698,2]
[383639978,1757057443198,-692.48,0.00013698,2]
[383639979,1757057443207,-480.0,0.00013698,2]
[383639980,1757057443216,-480.0,0.00013698,2]
[383639981,1757057443226,-480.0,0.00013698,2]
[383639982,1757057443236,-480.0,0.00013698,2]
[383639983,1757057443246,-480.0,0.00013698,2]
[383639984,1757057443255,-480.0,0.00013698,2]
[383639985,1757057443264,-591.73725784,0.00013698,2]
[383639986,1757057443273,-480.0,0.00013698,2]
[383639987,1757057443282,-480.0,0.00013698,2]
[383639988,1757057443292,-1404.37,0.00013698,2]
[383639989,1757057443302,-559.22,0.00013698,2]
[383639990,1757057443311,-480.0,0.00013698,2]
[383639991,1757057443320,-480.0,0.00013698,2]
[383639992,1757057443330,-786.05,0.00013698,2]
[383639993,1757057443340,-381.87211716,0.00013698,2]
[383639994,1757057443349,-480.0,0.00013698,2]
[383639995,1757057443359,-480.0,0.00013698,2]
[383639996,1757057443368,-480.0,0.00013698,2]
[383639997,1757057443378,-480.0,0.00013698,2]
[383639998,1757057443387,-480.0,0.00013698,2]
[383639999,1757057443396,-480.0,0.00013698,2]
[383640000,1757057443405,-480.0,0.00013698,2]
[383640001,1757057443415,-480.0,0.00013698,2]
[383640002,1757057443425,-480.0,0.00013698,2]
[383640003,1757057443434,-480.0,0.00013698,2]
[383640004,1757057443445,-480.0,0.00013698,2]
[383640005,1757057443454,-480.0,0.00013698,2]
[383640006,1757057443466,-480.0,0.00013698,2]
[383640007,1757057443476,-480.0,0.00013698,2]
[383640008,1757057443486,-480.0,0.00013698,2]
[383640009,1757057443496,-480.0,0.00013698,2]
[383640010,1757057443505,-480.0,0.00013698,2]
[383640011,1757057443515,-480.0,0.00013698,2]
[383640012,1757057443524,-480.0,0.00013698,2]
[383640013,1757057443533,-480.0,0.00013698,2]
[383640014,1757057443544,-2037.37,0.00013698,2]
[383640015,1757057443555,-480.0,0.00013698,2]
[383640016,1757057443565,-480.0,0.00013698,2]
[383640017,1757057443575,-480.0,0.00013698,2]
[383640018,1757057443585,-682.18,0.00013698,2]
[383640019,1757057443595,-480.0,0.00013698,2]
[383640020,1757057443606,-480.0,0.00013698,2]
[383640021,1757057443616,-480.0,0.00013698,2]
[383640022,1757057443627,-480.0,0.00013698,2]
[383640023,1757057443636,-480.0,0.00013698,2]
[383640024,1757057443645,-482.5152393,0.00013698,2]
[383640025,1757057443655,-480.0,0.00013698,2]
[383640026,1757057443666,-2231.83,0.00013698,2]
[383640027,1757057443675,-480.0,0.00013698,2]
[383640028,1757057443686,-480.0,0.00013698,2]
[383640029,1757057443696,-480.0,0.00013698,2]
[383640030,1757057443705,-278.07425603,0.00013698,2]
[383640031,1757057443715,-480.0,0.00013698,2]
[383640032,1757057443725,-518.18,0.00013698,2]
[383640033,1757057443735,-480.0,0.00013698,2]
[383640034,1757057443746,-480.0,0.00013698,2]
[383640035,1757057443757,-4681.63,0.00013698,2]
[383640036,1757057443768,-480.0,0.00013698,2]
[383640037,1757057443779,-983.17,0.00013698,2]
[383640038,1757057443789,-480.0,0.00013698,2]
[383640039,1757057443798,-480.0,0.00013698,2]
[383640040,1757057443808,-480.0,0.00013698,2]
[383640041,1757057443818,-480.0,0.00013698,2]
[383640042,1757057443829,-480.0,0.00013698,2]
[383640043,1757057443839,-480.0,0.00013698,2]
[383640044,1757057443848,-480.0,0.00013698,2]
[383640045,1757057443857,-184.8656637,0.00013698,2]
[383640046,1757057443867,-502.52,0.00013698,2]
[383640047,1757057443880,-480.0,0.00013698,2]
[383640048,1757057443889,-480.0,0.00013698,2]
[383640049,1757057443899,-798.54,0.00013698,2]
[383640050,1757057443909,-582.79,0.00013698,2]
[383640051,1757057443919,-481.10955087,0.00013698,2]
[383640052,1757057443929,-480.0,0.00013698,2]
[383640053,1757057443939,-641.24,0.00013698,2]
[383640054,1757057443950,-919.99,0.00013698,2]
[383640055,1757057443959,-480.0,0.00013698,2]
[383640056,1757057443969,-480.0,0.00013698,2]
[383640057,1757057443980,-481.95628682,0.00013698,2]
[383640058,1757057443990,-144.68435729,0.00013698,2]
[383640085,1757057444515,-335.31564271,0.00013698,2]
[383640087,1757057444525,-480.0,0.00013698,2]
[383640089,1757057444535,-108.19776333,0.00013698,2]
[383640092,1757057444551,-476.48659396,0.00013698,2]
[383641304,1757057464138,331.99306336,0.00013598,2]
[383641305,1757057470432,187924.26551237,0.00013,2]
[383641306,1757057480888,300.0,0.0001356,2]
[383641307,1757057504859,300.0,0.0001356,2]
[383641308,1757057527966,300.0,0.0001356,2]
[383641309,1757057536451,218.25868,0.0001356,2]
[383641310,1757057552008,300.0,0.0001356,2]
[383641311,1757057575156,300.0,0.0001356,2]
[383641312,1757057599074,300.0,0.0001356,2]
[383641313,1757057622467,300.0,0.0001356,2]
[383641314,1757057645820,300.0,0.0001356,2]
[383641315,1757057669770,300.0,0.0001356,2]
[383641316,1757057687748,342.22,0.00012329,2]
[383641318,1757057693391,300.0,0.0001356,2]
[383641319,1757057698348,285.19,0.00012329,2]
[383641320,1757057708735,435.7,0.00012329,2]
[383641321,1757057709403,354.19211467,0.00013561,2]
[383641322,1757057718262,1049.16875495,0.00013561,2]
[383641323,1757057726439,285.19,0.00013561,2]
[383641324,1757057739322,290.49393044,0.00013598,2]
[383641325,1757057810652,182.85407521,0.00013598,2]
[383641326,1757058019614,254.1821891,0.00013598,2]
[383641328,1757058147322,182.8540752,0.00013598,2]
[383641330,1757058299884,222.40941548,0.00013598,2]
[383641331,1757058337671,318.03190701,0.00013013,2]
[383641333,1757058480379,183.34281699,0.00013598,2]
[383641334,1757058580343,194.60823851,0.00013598,2]
[383641335,1757058603827,99999.99999901,0.00029368,60]
[383641361,1757058632679,-151.0,0.0001369,2]
[383641363,1757058632690,-151.0,0.0001369,2]
[383641365,1757058632699,-151.0,0.0001369,2]
[383641367,1757058632708,-151.0,0.0001369,2]
[383641369,1757058632717,-151.0,0.0001369,2]
[383641371,1757058632727,-151.0,0.0001369,2]
[383641373,1757058632736,-152.9668172,0.0001369,2]
[383641376,1757058632746,-251.44851969,0.0001369,2]
[383641379,1757058632755,-300.0,0.00013697,2]
[383641382,1757058632764,-453.66309805,0.00013698,2]
[383641384,1757058632776,-26.33690195,0.00013698,2]
[383641386,1757058632784,-480.7683191,0.00013698,2]
[383641388,1757058632794,-574.34,0.00013698,2]
[383641390,1757058632803,-57.35612153,0.00013698,2]
[383641403,1757058638563,-284.18841294,0.00013697,2]
[383641404,1757058638574,-500.0,0.00013697,2]
[383641405,1757058638587,-500.0,0.00013697,2]
[383641406,1757058638597,-117.02589161,0.00013697,2]
[383641407,1757058638611,-266.8,0.00013697,2]
[383641408,1757058638623,-116.17410839,0.00013697,2]
[383641409,1757058638633,-500.0,0.00013697,2]
[383641410,1757058638643,-500.0,0.00013697,2]
[383641411,1757058638652,-500.0,0.00013697,2]
[383641412,1757058638662,-500.0,0.00013697,2]
[383641413,1757058638672,-500.0,0.00013697,2]
[383641414,1757058638682,-481.74542209,0.00013698,2]
[383641415,1757058638693,-483.4865412,0.00013698,2]
[383641416,1757058638703,-483.92196257,0.00013698,2]
[383641417,1757058638712,-480.0,0.00013698,2]
[383641418,1757058638722,-480.0,0.00013698,2]
[383641419,1757058638731,-480.0,0.00013698,2]
[383641420,1757058638741,-480.0,0.00013698,2]
[383641421,1757058638750,-480.0,0.00013698,2]
[383641422,1757058638759,-621.56687067,0.00013698,2]
[383641423,1757058638769,-480.0,0.00013698,2]
[383641424,1757058638779,-480.0,0.00013698,2]
[383641425,1757058638788,-480.0,0.00013698,2]
[383641426,1757058638798,-480.0,0.00013698,2]
[383641427,1757058638807,-480.0,0.00013698,2]
[383641428,1757058638817,-480.0,0.00013698,2]
[383641429,1757058638826,-480.0,0.00013698,2]
[383641430,1757058638836,-481.26164314,0.00013698,2]
[383641431,1757058638845,-324.81826966,0.00013698,2]
[383641432,1757058638857,-155.18173034,0.00013698,2]
[383641433,1757058638867,-289.30563608,0.00013698,2]
[383641434,1757058638876,-481.03145468,0.00013698,2]
[383641435,1757058638886,-481.61817126,0.00013698,2]
[383641436,1757058638895,-480.0,0.00013698,2]
[383641437,1757058638904,-480.0,0.00013698,2]
[383641438,1757058638914,-482.91987033,0.00013698,2]
[383641439,1757058638923,-480.0,0.00013698,2]
[383641440,1757058638932,-481.64264598,0.00013698,2]
[383641441,1757058638942,-481.25073779,0.00013698,2]
[383641442,1757058638951,-482.62661809,0.00013698,2]
[383641443,1757058638960,-480.0,0.00013698,2]
[383641444,1757058638969,-480.0,0.00013698,2]
[383641445,1757058638979,-482.05384837,0.00013698,2]
[383641446,1757058638988,-328.66886511,0.00013698,2]
[383641447,1757058638997,-1004.92746409,0.00013698,2]
[383641448,1757058639008,-480.0,0.00013698,2]
[383641449,1757058639017,-480.0,0.00013698,2]
[383641450,1757058639027,-480.0,0.00013698,2]
[383641451,1757058639037,-481.56733637,0.00013698,2]
[383641452,1757058639047,-480.0,0.00013698,2]
[383641453,1757058639057,-480.0,0.00013698,2]
[383641454,1757058639068,-298.63563007,0.00013698,2]
[383641455,1757058639078,-480.0,0.00013698,2]
[383641456,1757058639088,-482.57462734,0.00013698,2]
[383641457,1757058639097,-482.48444786,0.00013698,2]
[383641458,1757058639107,-480.0,0.00013698,2]
[383641459,1757058639116,-480.0,0.00013698,2]
[383641460,1757058639126,-480.0,0.00013698,2]
[383641461,1757058639135,-545.82,0.00013698,2]
[383641462,1757058639145,-480.0,0.00013698,2]
[383641463,1757058639154,-480.0,0.00013698,2]
[383641464,1757058639163,-480.0,0.00013698,2]
[383641465,1757058639173,-481.97630846,0.00013698,2]
[383641466,1757058639182,-480.0,0.00013698,2]
[383641467,1757058639192,-539.59123498,0.00013698,2]
[383641468,1757058639201,-484.35515958,0.00013698,2]
[383641469,1757058639212,-384.83179176,0.00013698,2]
[383641470,1757058639221,-480.0,0.00013698,2]
[383641471,1757058639232,-481.47972172,0.00013698,2]
[383641472,1757058639242,-480.0,0.00013698,2]
[383641473,1757058639251,-480.0,0.00013698,2]
[383641474,1757058639261,-480.0,0.00013698,2]
[383641475,1757058639270,-480.0,0.00013698,2]
[383641476,1757058639280,-480.0,0.00013698,2]
[383641477,1757058639289,-481.89567492,0.00013698,2]
[383641478,1757058639299,-503.578166,0.00013698,2]
[383641479,1757058639308,-482.85819625,0.00013698,2]
[383641480,1757058639317,-482.46504395,0.00013698,2]
[383641481,1757058639327,-480.0,0.00013698,2]
[383641482,1757058639336,-482.46610602,0.00013698,2]
[383641483,1757058639346,-480.0,0.00013698,2]
[383641484,1757058639355,-480.0,0.00013698,2]
[383641485,1757058639364,-480.0,0.00013698,2]
[383641486,1757058639374,-354.08,0.00013698,2]
[383641487,1757058639383,-482.98049926,0.00013698,2]
[383641488,1757058639392,-482.83383227,0.00013698,2]
[383641489,1757058639401,-480.0,0.00013698,2]
[383641490,1757058639411,-483.23199248,0.00013698,2]
[383641491,1757058639420,-480.0,0.00013698,2]
[383641492,1757058639429,-480.0,0.00013698,2]
[383641493,1757058639439,-480.0,0.00013698,2]
[383641494,1757058639448,-480.0,0.00013698,2]
[383641495,1757058639457,-8.2710696,0.00013698,2]
[383641524,1757058640967,-471.7289304,0.00013698,2]
[383641527,1757058640977,-480.0,0.00013698,2]
[383641529,1757058640986,-480.0,0.00013698,2]
[383641530,1757058640995,-481.34718972,0.00013698,2]
[383641532,1757058641006,-8.8992104,0.00013698,2]
[383641535,1757058641018,-471.1007896,0.00013698,2]
[383641537,1757058641027,-480.68365662,0.00013698,2]
[383641539,1757058641036,-536.14,0.00013698,2]
[383641541,1757058641046,-480.0,0.00013698,2]
[383641543,1757058641055,-499.44220964,0.00013698,2]
[383641544,1757058641065,-278.99227982,0.00013698,2]
[383641546,1757058641074,-480.0,0.00013698,2]
[383641549,1757058641083,-480.0,0.00013698,2]
[383641550,1757058641093,-582.08878054,0.00013698,2]
[383641552,1757058641102,-386.54289501,0.00013698,2]
[383641555,1757058641112,-480.0,0.00013698,2]
[383641556,1757058641121,-480.0,0.00013698,2]
[383641558,1757058641131,-562.81964523,0.00013698,2]
[383641560,1757058641140,-480.0,0.00013698,2]
[383641563,1757058641149,-480.0,0.00013698,2]
[383641564,1757058641159,-480.0,0.00013698,2]
[383641566,1757058641168,-480.0,0.00013698,2]
[383641569,1757058641177,-480.0,0.00013698,2]
[383641570,1757058641186,-480.0,0.00013698,2]
[383641573,1757058641195,-480.0,0.00013698,2]
[383641574,1757058641205,-480.0,0.00013698,2]
[383641576,1757058641214,-480.0,0.00013698,2]
[383641578,1757058641223,-480.0,0.00013698,2]
[383641580,1757058641233,-480.0,0.00013698,2]
[383641583,1757058641242,-480.0,0.00013698,2]
[383641585,1757058641252,-480.0,0.00013698,2]
[383641586,1757058641261,-480.0,0.00013698,2]
[383641587,1757058641271,-28.18023131,0.00013698,2]
[383641588,1757058641283,-359.99275684,0.00013698,2]
[383641592,1757058643735,-91.82701185,0.00013698,2]
[383641593,1757058643745,-480.0,0.00013698,2]
[383641594,1757058643755,-480.0,0.00013698,2]
[383641595,1757058643764,-480.0,0.00013698,2]
[383641596,1757058643774,-561.79381313,0.00013698,2]
[383641597,1757058643783,-480.0,0.00013698,2]
[383641598,1757058643792,-480.0,0.00013698,2]
[383641599,1757058643802,-480.0,0.00013698,2]
[383641600,1757058643811,-480.0,0.00013698,2]
[383641601,1757058643820,-366.61605694,0.00013698,2]
[383641619,1757058646751,-113.38394306,0.00013698,2]
[383641620,1757058646761,-480.0,0.00013698,2]
[383641621,1757058646771,-480.0,0.00013698,2]
[383641622,1757058646780,-480.0,0.00013698,2]
[383641623,1757058646790,-480.0,0.00013698,2]
[383641624,1757058646800,-480.0,0.00013698,2]
[383641625,1757058646810,-366.12977554,0.00013698,2]
[383641626,1757058646819,-480.0,0.00013698,2]
[383641627,1757058646829,-394.25156681,0.00013698,2]
[383641628,1757058646839,-480.0,0.00013698,2]
[383641629,1757058646848,-480.0,0.00013698,2]
[383641630,1757058646858,-480.0,0.00013698,2]
[383641631,1757058646870,-480.0,0.00013698,2]
[383641632,1757058646879,-480.0,0.00013698,2]
[383641633,1757058646890,-480.0,0.00013698,2]
[383641634,1757058646899,-91.74536672,0.00013698,2]
[383641635,1757058646911,-388.25463328,0.00013698,2]
[383641636,1757058646920,-480.0,0.00013698,2]
[383641637,1757058646930,-1217.60224745,0.00013698,2]
[383641638,1757058646946,-691.17944584,0.00013698,2]
[383641639,1757058646958,-5342.30374041,0.00013698,2]
[383641640,1757058646967,-480.0,0.00013698,2]
[383641641,1757058646976,-480.0,0.00013698,2]
[383641642,1757058646985,-240.91285836,0.00013698,2]
[383641643,1757058646994,-481.45449761,0.00013698,2]
[383641644,1757058647003,-480.0,0.00013698,2]
[383641645,1757058647013,-544.78617761,0.00013698,2]
[383641646,1757058647022,-480.0,0.00013698,2]
[383641647,1757058647032,-480.0,0.00013698,2]
[383641648,1757058647041,-480.0,0.00013698,2]
[383641649,1757058647050,-190.13547588,0.00013698,2]
[383641650,1757058647059,-480.0,0.00013698,2]
[383641651,1757058647069,-357.09168413,0.00013698,2]
[383641652,1757058667112,300.0,0.00013559,2]
[383641653,1757058690995,300.0,0.00013559,2]
[383641654,1757058714484,300.0,0.00013559,2]
[383641655,1757058718055,22900.98206495,0.00013598,2]
[383641656,1757058718086,20481.09415909,0.00013598,2]
[383641657,1757058737628,1500.0,0.00013559,2]
[383641658,1757058760342,1500.0,0.00013559,2]
[383641659,1757058817049,183.34281699,0.00013598,2]
[383641660,1757058856165,170.28220874,0.00013597,2]
[383641662,1757059149608,183.34281699,0.00013598,2]
[383641663,1757059166548,170.28220869,0.00013597,2]
[383641666,1757059272156,704.29372982,0.00013598,2]
[383641667,1757059461984,170.28220869,0.00013597,2]
[383641668,1757059478169,183.34281699,0.00013598,2]
[383641669,1757059539650,238.52393026,0.00013011,2]
[383641670,1757059542348,469.52915322,0.00013598,2]
[383641684,1757059722263,170.28220869,0.00013594,2]
[383641729,1757059832023,-1200.0,0.00013689,2]
[383641731,1757059832033,-300.0,0.00013689,2]
[383641733,1757059832043,-300.0,0.00013689,2]
[383641734,1757059832052,-300.0,0.00013689,2]
[383641735,1757059832062,-1200.0,0.00013689,2]
[383641736,1757059832071,-300.0,0.00013689,2]
[383641737,1757059832080,-250.0,0.0001369,2]
[383641738,1757059832089,-250.0,0.0001369,2]
[383641739,1757059832098,-250.0,0.0001369,2]
[383641740,1757059832107,-250.0,0.0001369,2]
[383641741,1757059832116,-151.0,0.0001369,2]
[383641742,1757059832125,-255.0,0.0001369,2]
[383641743,1757059832136,-151.0,0.0001369,2]
[383641744,1757059832145,-151.0,0.0001369,2]
[383641745,1757059832154,-151.0,0.0001369,2]
[383641746,1757059832163,-187.78006524,0.0001369,2]
[383641747,1757059832172,-8016.40594444,0.00013694,2]
[383641748,1757059832183,-20030.20112218,0.00013694,2]
[383641749,1757059832199,-1128.6,0.00013694,2]
[383641750,1757059832210,-455.03731312,0.00013694,2]
[383641753,1757059832568,313.01943548,0.00013598,2]
[383641771,1757059837877,-422.13218258,0.00013694,2]
[383641805,1757059840117,-1978.15800374,0.00013694,2]
[383641953,1757059844214,-7002.31629907,0.00013694,2]
[383641954,1757059844226,-577.42319128,0.00013694,2]
[383641955,1757059844268,-630.95733524,0.00013694,2]
[383641957,1757059844278,-326.34583618,0.00013697,2]
[383641960,1757059844288,-1926.14941561,0.00013697,2]
[383641962,1757059844297,-198.93188906,0.00013697,2]
[383641964,1757059844306,-500.0,0.00013697,2]
[383641966,1757059844316,-500.0,0.00013697,2]
[383641968,1757059844326,-500.0,0.00013697,2]
[383641970,1757059844335,-500.0,0.00013697,2]
[383641972,1757059844345,-500.0,0.00013697,2]
[383641974,1757059844355,-500.0,0.00013697,2]
[383641976,1757059844364,-500.0,0.00013697,2]
[383641978,1757059844374,-500.0,0.00013697,2]
[383641980,1757059844384,-500.0,0.00013697,2]
[383641982,1757059844393,-500.0,0.00013697,2]
[383641984,1757059844403,-500.0,0.00013697,2]
[383641985,1757059844413,-500.0,0.00013697,2]
[383641986,1757059844422,-322.08228435,0.00013697,2]
[383641987,1757059844433,-177.91771565,0.00013697,2]
[383641988,1757059844442,-500.0,0.00013697,2]
[383641989,1757059844451,-500.0,0.00013697,2]
[383641990,1757059844460,-500.0,0.00013697,2]
[383641991,1757059844469,-567.28119959,0.00013697,2]
[383641992,1757059844479,-300.0,0.00013697,2]
[383641993,1757059844489,-18926.179864,0.00013698,2]
[383641994,1757059844498,-480.0,0.00013698,2]
[383641995,1757059844508,-480.0,0.00013698,2]
[383641996,1757059844517,-480.0,0.00013698,2]
[383641997,1757059844527,-151.0,0.00013698,2]
[383641998,1757059844536,-151.0,0.00013698,2]
[383641999,1757059844545,-480.0,0.00013698,2]
[383642000,1757059844555,-554.74010907,0.00013698,2]
[383642001,1757059844564,-523.87,0.00013698,2]
[383642002,1757059844573,-480.0,0.00013698,2]
[383642003,1757059844583,-480.0,0.00013698,2]